Cogmind - Beta 10.2 @@@ ROGUE MODE // 2021.12.21 @ 11:55:48 Player: SURFACESEEKER Result: Destroyed by H-55 Commando with Gauss Rifle Performance ------------- Evolutions (3) 1500 Regions Visited (5) 1000 Robots Destroyed (125) 625 Value Destroyed (4338) 4338 Prototype IDs (9) 180 Alien Tech Used (0) 0 Bonus (499) 499 TOTAL SCORE: 8142 Bonus ------- High Alert Combat Kills 499 Cogmind --------- Core Integrity 0/700 Matter 287/300 Energy 296/310 System Corruption 14% Temperature Cool (4) Movement Walking (127) Location -7/Storage Parts ------- > --- POWER (2) -------- Cooled Deuterium Engine > --- PROPULSION (4) --- Aluminum Leg Improved Titanium Leg Improved Titanium Leg Improved Titanium Leg > --- UTILITY (5) ------ High-capacity Storage Unit Seismic Analyzer Advanced Targeting Computer Improved Medium Armor Plating Improved Medium Armor Plating > --- WEAPON (2) ------- Precision Assault Rifle Precision Assault Rifle > --- INVENTORY (12) --- Improved Terrain Scanner Terrain Scan Processor Improved ECM Suite Improved Field Recycling Unit (111) Plasma Cannon Precision Assault Rifle Precision Assault Rifle Precision Assault Rifle Gauss Cannon Remote Datajack Greatsword Peak State ------------ > --- POWER ------------ Cooled Deuterium Engine Light Angular Momentum Engine > --- PROPULSION ------- Improved Titanium Leg Improved Titanium Leg Improved Titanium Leg Improved Titanium Leg > --- UTILITY ---------- Large Storage Unit High-capacity Storage Unit Seismic Analyzer Advanced Targeting Computer Improved Field Recycling Unit > --- WEAPON ----------- Precision Assault Rifle Precision Assault Rifle > --- INVENTORY -------- Micro Nuclear Core Improved Cooling System Improved Terrain Scanner Improved Terrain Scanner Terrain Scan Processor Improved ECM Suite Hardened Medium Armor Plating Heavy EM Shotgun Heavy Laser Plasma Cannon Precision Assault Rifle Precision Assault Rifle Precision Assault Rifle Gauss Cannon Precision Grenade Launcher Remote Datajack Greatsword [Rating: 52] Favorites ----------- Power Deuterium Engine Engine Deuterium Engine Power Core Light Nuclear Core Propulsion Aluminum Leg Treads Light Treads Leg Aluminum Leg Wheel Armored Huge Wheel Hover Unit Improved Airjet Utility Large Storage Unit Device Improved Terrain Scanner Storage Large Storage Unit Processor Seismic Analyzer Protection Hardened Medium Armor Plating Weapon Precision Assault Rifle Energy Gun Beam Rifle Energy Cannon Heavy Ion Cannon Ballistic Gun Precision Assault Rifle Ballistic Cannon Flak Cannon Launcher Precision Grenade Launcher Special Weapon Mining Laser Slashing Weapon Greatsword Build | -11 -10 -9 -8 -7 -7 ------- Run | Scr Mat Mat Mat Fac Sto Slots Evolved 6 | . . 2 2 2 . Power 1 | . . . . 1 . Propulsion 2 | . . . 2 . . Utility 3 | . . 2 . 1 . Weapon . | . . . . . . Parts Attached 187 | 7 5 6 48 66 55 Power 30 | 1 1 . 7 12 9 Engine 17 | 1 . . 4 7 5 Core 13 | . 1 . 3 5 4 Reactor . | . . . . . . Propulsion 56 | 2 2 1 20 16 15 Treads 12 | . . . 5 2 5 Leg 40 | 2 2 1 15 11 9 Wheel 3 | . . . . 3 . Hover 1 | . . . . . 1 Flight . | . . . . . . Utility 39 | 2 . 2 4 18 13 Device 29 | 1 . 1 1 17 9 Storage 3 | . . 1 1 1 . Processor 3 | 1 . . 2 . . Hackware . | . . . . . . Protection 4 | . . . . . 4 Artifact . | . . . . . . Weapon 62 | 2 2 3 17 20 18 Energy Gun 14 | 2 1 2 2 6 1 Energy Cannon 4 | . . . . 4 . Ballistic Gun 24 | . . . 8 5 11 Ballistic Cannon 12 | . . . 7 3 2 Launcher 2 | . . . . . 2 Special Weapon 3 | . 1 1 . 1 . Impact Weapon . | . . . . . . Slashing Weapon 3 | . . . . 1 2 Piercing Weapon . | . . . . . . Special Melee Weapon . | . . . . . . Unidentified Prototypes 7 | . . . 1 2 4 Parts Lost 40 | . . 3 21 11 5 Power 8 | . . . 3 4 1 Propulsion 12 | . . . 8 2 2 Utility 3 | . . . 2 . 1 Weapon 17 | . . 3 8 5 1 Highest Loss Streak 7 | . . 2 7 4 1 Average Slot Usage (%) 94 | . 100 88 94 92 96 Engine 7 | . 11 . 4 9 9 Core 4 | . 2 11 2 4 5 Treads 6 | . . . 12 . 10 Leg 19 | . 28 20 21 17 17 Wheel 2 | . . . . 5 . Device 8 | . 14 16 8 7 6 Storage 14 | . . 11 17 15 13 Processor 13 | . 14 11 9 15 15 Energy Gun 3 | . 23 18 . 3 . Energy Cannon 1 | . . . . 2 . Ballistic Gun 8 | . . . 11 5 12 Ballistic Cannon 2 | . . . 4 1 . Naked Turns . | . . . . . . Heaviest Build 88 | 8 10 28 50 84 88 Greatest Support 88 | 20 20 20 80 50 88 Greatest Overweight (x) 25 | . . 2 3 21 25 Average Overweight (x) 1 | . . 1 . 1 . Largest Inventory Capacity 18 | 4 4 10 16 18 18 Average Capacity 15 | 4 4 10 15 18 17 Most Carried 18 | 4 4 9 16 18 18 Average Carried 13 | 1 3 6 13 14 16 Final Capacity 18 | 4 4 10 16 18 12 Final Carried 17 | 4 4 9 15 17 12 Class Distribution -------------------- 56% | Scavenger-Mutant 43% | Mutant Dominant Class ---------------- Mutant | -10/Materials Scavenger-Mutant | -9/Materials Scavenger-Mutant | -8/Materials Mutant | -7/Factory Mutant | -7/Storage Resources | -11 -10 -9 -8 -7 -7 ----------- Run | Scr Mat Mat Mat Fac Sto Matter Collected 4024 | 270 50 55 1438 1116 1095 Remotely . | . . . . . . Salvage Created 4682 | 141 109 173 1658 1091 1510 Parts 251 | 11 4 13 91 57 75 Haulers Intercepted 6 | . . . 1 1 4 Recyclers Shooed 5 | 1 . . 2 2 . Parts Field Recycled 43 | . . . . 5 38 Retrieved Matter 611 | . . . . 64 547 Parts Self-Destructed . | . . . . . . Prevented . | . . . . . . Kills | -11 -10 -9 -8 -7 -7 ------- Run | Scr Mat Mat Mat Fac Sto Combat Hostiles Destroyed 90 | . 2 3 37 22 26 Melee 2 | . . . 1 . 1 Guns 64 | . 2 2 27 10 23 Cannons 19 | . . . 9 9 1 AOE 4 | . . . . 3 1 Classes Destroyed 12 | 2 1 1 7 1 . Worker 12 | . . . 5 5 2 Builder 3 | . . . 1 . 2 Tunneler 3 | 3 . . . . . Hauler 6 | . . . 1 1 4 Recycler 6 | 1 . . 2 3 . Operator 2 | . . 2 . . . Watcher 3 | . . . 2 . 1 Swarmer 14 | . . . 7 7 . Grunt 43 | . 2 3 20 4 14 Sentry 17 | . . . 8 3 6 Hunter 3 | . . . 2 . 1 Programmer 13 | . . . . 8 5 Best Kill Streak 9 | 3 2 2 7 4 9 Combat Bots Only 5 | . 2 2 5 3 3 Max Kills in Single Turn 3 | 1 1 1 2 3 3 Gunslinging 1 | . . . 1 . . Exploded 3 | . . . . 3 1 Melee 1 | . . . 1 . 1 Uniques/NPCs Destroyed . | . . . . . . Combat | -11 -10 -9 -8 -7 -7 -------- Run | Scr Mat Mat Mat Fac Sto Damage Taken 9175 | 36 117 327 3676 2386 2633 Core 1339 | . 49 64 505 262 459 Absorbed by Shields . | . . . . . . Core Remaining (%) 68 | 100 80 84 8 . . Volleys Fired 482 | 12 10 22 181 148 109 Largest 2 | 2 2 2 2 2 2 Hottest 121 | 90 100 100 88 121 76 Shots Fired 846 | 24 14 38 330 240 200 Gun 619 | 24 8 36 229 140 182 Cannon 210 | . . . 101 97 12 Launcher 6 | . . . . . 6 Special 11 | . 6 2 . 3 . Kinetic 599 | . . . 308 97 194 Thermal 171 | 12 10 12 14 123 . Explosive 6 | . . . . . 6 Electromagnetic 70 | 12 4 26 8 20 . Robot Hit Streak 42 | 5 12 9 38 22 42 Robot Miss Streak 10 | 2 . 1 10 10 1 Penetration Max . | . . . . . . Secondary Targets 4 | . . . 2 . 2 Max Gunslinging Chain 1 | . . . 1 . 1 Shots Hit Robots 617 | 14 8 28 272 125 170 Core Hits 293 | 5 5 6 129 79 69 Critical Hits 7 | . . . 1 1 5 Critical Kills 4 | . . . 1 1 2 Critical Parts Destroyed 3 | . . . . . 3 Melee Attacks 14 | . . . . 3 11 Impact . | . . . . . . Slashing 14 | . . . . 3 11 Piercing . | . . . . . . Sneak Attacks 2 | . . . . 1 1 Combat Hostiles . | . . . . . . Follow-up Attacks . | . . . . . . Damage Inflicted 12293 | 196 108 325 3815 3531 4318 Guns 7717 | 169 108 325 2477 1556 3082 Cannons 2502 | . . . 1285 1114 103 Explosions 1419 | 27 . . . 679 713 Melee 578 | . . . . 160 418 Ramming 77 | . . . 53 22 2 Kinetic 8253 | . . . 3496 1572 3185 Thermal 1876 | 130 51 49 160 1486 . Explosive 713 | . . . . . 713 Electromagnetic 796 | 66 57 276 106 291 . Impact . | . . . . . . Slashing 578 | . . . . 160 418 Piercing . | . . . . . . Highest Corruption 14 | . . . 2 7 14 Average Corruption 4 | . . . 1 3 12 Corruption Purged . | . . . . . . Effects 164 | . . . 14 50 100 Message Errors 32 | . . . 5 10 17 Matter Fused 25 | . . . . 5 20 Heat Flow Errors 17 | . . . . 9 8 Energy Discharges 15 | . . . 4 6 5 Parts Rejected 3 | . . . . 2 1 Data Loss (minor) 13 | . . . 2 5 6 Data Loss (major) 7 | . . . . 4 3 Misfires 5 | . . . . 2 3 Alerts 2 | . . . . . 2 Misdirections 9 | . . . . . 9 Targeting Errors 33 | . . . 3 6 24 Weapon Failures 3 | . . . . 1 2 Overload Shots . | . . . . . . Overflow Damage 431 | . . . 29 367 35 Projectiles 38 | . . . 23 15 . Explosions 243 | . . . . 232 11 Melee 150 | . . . 6 120 24 Knockbacks 59 | . . . 37 19 3 Impact 2 | . . . 2 . . Kinetic 56 | . . . 34 19 3 Secondary 1 | . . . 1 . . Self-Inflicted Damage 212 | 36 . . 7 122 47 Shots 4 | 1 . . . 2 1 Rammed 13 | . . . 9 3 1 Targets Rammed 18 | . . . 13 3 2 Kicked 5 | . . . 4 . 1 Crushed . | . . . . . . Highest Temperature 294 | 282 177 129 154 278 294 Average Temperature 67 | 117 51 34 40 89 65 Received Heat Transfer 2988 | . 63 120 1377 585 843 Effects 2 | . . . . 2 . Interference 2 | . . . . 2 . Siege Activations . | . . . . . . Robots Corrupted 1 | . . 1 . . . Combat Hostiles 1 | . . 1 . . . Parts Fried 3 | . . 1 1 1 . Impact Corruptions 1 | . . . 1 . . Robots Melted . | . . . . . . Combat Hostiles . | . . . . . . Parts Melted 2 | . . . 1 1 . Heat Transferred 2757 | 296 148 148 407 1758 . Parts Sabotaged . | . . . . . . Parts Stolen . | . . . . . . Parts Stripped . | . . . . . . Power Chain Reactions 2 | 1 . . . 1 . Missiles Intercepted . | . . . . . . Alert | -11 -10 -9 -8 -7 -7 ------- Run | Scr Mat Mat Mat Fac Sto Peak Influence 765 | 20 78 211 386 700 765 Initial 318 | . 13 32 5 158 318 Average 274 | 10 34 86 140 332 499 Maximum Alert Level 3 | . . 1 1 3 3 Low Security (%) 44 | 100 100 99 60 39 . Level 1 22 | . . . 39 20 13 Level 2 30 | . . . . 38 79 Level 3 2 | . . . . 1 7 Level 4 . | . . . . . . Level 5 . | . . . . . . High Security . | . . . . . . Max Security . | . . . . . . Squads Dispatched 30 | . . 3 6 9 12 Investigation 9 | . . 2 5 1 1 Extermination 11 | . . . . 7 4 Reinforcement 6 | . . 1 1 . 4 Assault . | . . . . . . Garrison 4 | . . . . 1 3 Intercept . | . . . . . . Construction Impeded 1 | . . . . . 1 Haulers Reinforced 1 | . . . . . 1 Stealth | -11 -10 -9 -8 -7 -7 --------- Run | Scr Mat Mat Mat Fac Sto Distress Signals 17 | . 1 . 9 3 4 Communications Jammed . | . . . . . . Distress Signals . | . . . . . . Times Spotted 162 | . 3 11 59 45 44 Peak Tracking Total 6 | . 3 4 6 5 4 Tactical Retreats 18 | . 1 2 4 6 5 Traps | -11 -10 -9 -8 -7 -7 ------- Run | Scr Mat Mat Mat Fac Sto Traps Triggered 3 | . . 1 1 1 . Indirectly . | . . . . . . Trap Hack Attempts . | . . . . . . Triggered . | . . . . . . Disarmed . | . . . . . . Reprogrammed . | . . . . . . Reused . | . . . . . . Traps Extracted . | . . . . . . Installed . | . . . . . . Triggered . | . . . . . . Machines | -11 -10 -9 -8 -7 -7 ---------- Run | Scr Mat Mat Mat Fac Sto Machines Disabled 11 | . . . . 7 4 Max in Single Turn 6 | . . . . 6 1 Machines Sabotaged . | . . . . . . Garrisons Compromised . | . . . . . . Overloaded Fab Kills . | . . . . . . Fab Network Shutdowns . | . . . . . . Hacking | -11 -10 -9 -8 -7 -7 --------- Run | Scr Mat Mat Mat Fac Sto Machines Accessed 19 | . . 4 8 4 3 Terminals 11 | . . 2 5 2 2 Fabricators . | . . . . . . Repair Stations 1 | . . 1 . . . Recycling Units 4 | . . 1 1 1 1 Scanalyzers 3 | . . . 2 1 . Garrison Access . | . . . . . . Total Hacks 59 | . . 10 31 10 8 Successful 36 | . . 6 20 6 4 Failed 23 | . . 4 11 4 4 Catastrophic 1 | . . . . 1 . Database Lockouts . | . . . . . . Manual 26 | . . 5 11 7 3 Terminals 40 | . . 6 23 5 6 Fabricators . | . . . . . . Repair Stations 2 | . . 2 . . . Recycling Units 7 | . . 2 1 2 2 Scanalyzers 10 | . . . 7 3 . Garrison Access . | . . . . . . Terminal Hacks 11 | . . 1 8 . 2 Record 1 | . . . 1 . . Prototype ID Bank 1 | . . . 1 . . Open Door 2 | . . . . . 2 Branch Access Points 1 | . . . 1 . . Emergency Access Points 2 | . . 1 1 . . Alert Level 1 | . . . 1 . . Unreport Threat 1 | . . . 1 . . Hauler Manifests 1 | . . . 1 . . Zone Layout 1 | . . . 1 . . Fabricator Hacks . | . . . . . . Repair Station Hacks 2 | . . 2 . . . Scan Component 1 | . . 1 . . . Repair 1 | . . 1 . . . Recycling Unit Hacks 2 | . . 1 . . 1 Report Inventory 2 | . . 1 . . 1 Scanalyzer 7 | . . . 5 2 . Insert Component 4 | . . . 3 1 . Analyze 3 | . . . 2 1 . Garrison Access Hacks . | . . . . . . Unauthorized Hacks 14 | . . 2 7 4 1 Terminals 10 | . . 1 6 3 . Track 4 | . . . 3 1 . Assimilate 2 | . . . 1 1 . Botnet 4 | . . 1 2 1 . Fabricators . | . . . . . . Repair Stations . | . . . . . . Recycling Units 4 | . . 1 1 1 1 Tunnel 4 | . . 1 1 1 1 Scanalyzers . | . . . . . . Garrison Access . | . . . . . . Data Cores Recovered 1 | . . 1 . . . Used . | . . . . . . Hacking Detections 14 | . . 2 6 3 3 Full Trace Events 5 | . . 1 4 . . Feedback Events 1 | . . . 1 . . Corruption 1 | . . . 1 . . Feedback Blocked . | . . . . . . Robot Schematics Acquired . | . . . . . . Robots Built . | . . . . . . Matter . | . . . . . . Time . | . . . . . . Total Robot Build Rating . | . . . . . . Part Schematics Acquired 3 | . . . 2 1 . Parts Built . | . . . . . . Matter . | . . . . . . Time . | . . . . . . Total Part Build Rating . | . . . . . . Parts Repaired 1 | . . 1 . . . Time 26 | . . 26 . . . Parts Recycled . | . . . . . . Recycled Matter . | . . . . . . Retrieved Matter . | . . . . . . Retrieved Components . | . . . . . . Parts Scanalyzed 3 | . . . 2 1 . Part Schematics Acquired 3 | . . . 2 1 . Parts Damaged . | . . . . . . Bothacking | -11 -10 -9 -8 -7 -7 ------------ Run | Scr Mat Mat Mat Fac Sto Used RIF Installer . | . . . . . . Robots Hacked . | . . . . . . Non-combat . | . . . . . . Combat . | . . . . . . Robot Hacks Applied . | . . . . . . Relay Couplers Released . | . . . . . . Robots Rewired . | . . . . . . Allies Hacked . | . . . . . . Hacks Repelled . | . . . . . . Allies | -11 -10 -9 -8 -7 -7 -------- Run | Scr Mat Mat Mat Fac Sto Total Allies 1 | . . . 1 . . Largest Group 1 | . . . 1 . . Highest-Rated Group 10 | . . . 10 . . Highest-Rated Ally 10 | . . . 10 . . Total Orders 2 | . . . 2 . . STAY 1 | . . . 1 . . FOLLOW 1 | . . . 1 . . Ally Attacks . | . . . . . . Total Damage . | . . . . . . Kills . | . . . . . . Allies Corrupted . | . . . . . . Allies Melted . | . . . . . . Intel | -11 -10 -9 -8 -7 -7 ------- Run | Scr Mat Mat Mat Fac Sto Robot Analysis Total . | . . . . . . Derelict Logs Recovered . | . . . . . . Drone Launches . | . . . . . . Drone Recoveries . | . . . . . . Exploration | -11 -10 -9 -8 -7 -7 ------------- Run | Scr Mat Mat Mat Fac Sto Turns Passed 8753 | 165 327 471 2743 3341 1706 Spaces Moved 4127 | 103 227 236 1112 1764 685 Core 21 | 17 . . . 1 3 Treads 606 | . . . 292 65 249 Legs 2308 | 86 227 236 820 506 433 Wheels 1192 | . . . . 1192 . Hover . | . . . . . . Flight . | . . . . . . Fastest Speed 50 | 50 120 150 120 110 127 Average Speed 140 | 108 120 152 142 135 158 Slowest Speed 1300 | 120 120 180 210 1100 1300 Overloaded Moves . | . . . . . . Propulsion Burnouts . | . . . . . . Robots Hopped . | . . . . . . Cave-ins Triggered . | . . . . . . Exploration Rate (%) 31 | 5 38 14 62 29 42 Regions Visited 5 Branch Regions 1 Pre-discovered Areas 5 | . . 1 1 1 2 Known Exits Taken . | . . . . . . Unknown Exits Taken 5 | 1 1 1 1 1 . Scrap Searched . | . . . . . . Spaces Dug 25 | . 6 2 . 12 5 Terrain Destroyed 154 | 2 6 2 1 100 43 Melee 7 | . . . . 2 5 Projectile 23 | . 6 2 1 11 3 AOE 124 | 2 . . . 87 35 Terrain Rammed . | . . . . . . Walls Destroyed . | . . . . . . Machines Disabled . | . . . . . . Actions | -11 -10 -9 -8 -7 -7 --------- Run | Scr Mat Mat Mat Fac Sto Total 6196 | 132 256 303 1955 2469 1081 Wait 1145 | . 8 31 525 420 161 Move 4122 | 102 226 235 1111 1763 685 Hop . | . . . . . . Pick Up 132 | 11 2 9 51 39 20 Fast Attach 26 | . 1 . 6 2 17 Attach 84 | 7 . 4 28 28 17 Detach 10 | . . . . 4 6 Swap 77 | . 4 2 14 36 21 Drop 86 | . 5 . 26 23 32 Fire 482 | 12 10 22 181 148 109 Melee 14 | . . . . 3 11 Ram 3 | . . . . 3 . Kick 10 | . . . 8 . 2 Crush 5 | . . . 5 . . Escape Stasis . | . . . . . . Rewire . | . . . . . . Trap . | . . . . . . Miscellaneous . | . . . . . . Route ------- -11/Scrapyard -10/Materials (discovered 2 exits: *Mat / [*Min]) -9/Materials -8/Materials -7/Factory -7/Storage History --------- Turn | Location | Event 5 | -11/Scrapyard | Discovered new exit (range 16) 166 | -11/Scrapyard | Entered Materials 323 | -10/Materials | Build established: Mutant 375 | -10/Materials | Discovered new exit (range 13) 473 | -10/Materials | Discovered new exit (range 16) 493 | -10/Materials | Entered another Materials area 493 | -9/Materials | Evolved 2 slots: Utility x2 714 | -9/Materials | Build established: Scavenger-Mutant 735 | -9/Materials | Repaired Aluminum Leg 873 | -9/Materials | Discovered new exit (range 4) 964 | -9/Materials | Entered another Materials area 964 | -8/Materials | Evolved 2 slots: Propulsion x2 1514 | -8/Materials | Lost 6 parts (4n2w) 1796 | -8/Materials | Core integrity fell below 50% 2895 | -8/Materials | Build established: Mutant 2920 | -8/Materials | Discovered new exit (range 7) 3203 | -8/Materials | Build established: Scavenger-Mutant 3477 | -8/Materials | Core integrity fell below 20% 3524 | -8/Materials | Lost 7 parts (1p3n3w) 3707 | -8/Materials | Entered Factory 3707 | -7/Factory | Evolved 2 slots: Power x1, Utility x1 4358 | -7/Factory | Lost 4 parts (1p2n1w) 4847 | -7/Factory | Build established: Mutant 5672 | -7/Factory | Lost 4 parts (1p3w) 6115 | -7/Factory | Garrison activated, responded to threat 6761 | -7/Factory | Build established: Scavenger-Mutant 7018 | -7/Factory | Discovered new exit (range 5) 7048 | -7/Factory | Entered Storage 7156 | -7/Storage | Core integrity fell below 50% 7325 | -7/Storage | System corruption reached 10% 8360 | -7/Storage | Build established: Mutant 8478 | -7/Storage | Garrison activated, responded to threat 8524 | -7/Storage | Core integrity fell below 20% 8754 | -7/Storage | Destroyed by H-55 Commando with Gauss Rifle Last Messages --------------- 08706_ K-01 Serf collects debris. 08707_ U-05 Engineer lays Concrete. 08712_ K-01 Serf collects debris. 08714_ O-24 Administrator: "IFF HANDSHAKE FAILED. SECURING TERMINAL." 08715_ K-01 Serf collects debris. 08717_ ALERT: Hostiles spotted, dispatching reinforcements to Terminal S002. 08719_ ALERT: Hostiles spotted, dispatching reinforcements to Terminal S014. 08722_ QRJEQFVEL#K=>D7R9KHQ0D7VU 08725_ Slug penetrates Wall. 08728_ R-06 Scavenger collects Unknown Ballistic Gun. 08732_ W-25 Informer sends out distress signal. 08737_ System corrupted: Component data lost. 08742_ Slug penetrates Wall. 08752_ System corrupted: Matter fused (-10). 08754_ Slug penetrates Wall. 08754_ Lgt. Nuclear Core destroyed. 08754_ Penetrated by Slug. Map ----- +----------------------------------------------------+ | | | | | ??????????????????############## | | ???????????????? ? ##### | | ?????????????????" """ """ ##### | | ????????????#??""" """ """ #### | | ????????????## ??" """ """ ##### | | ????????????#?? ? ##### | | ???????????#?# ? ## ## | | ??????????#?#??#####+### # % ## | | ???????????###?# % [ | | ???????#""??#### [ =[=! | | ???????#"T"##?## % ! [ !!= ! | | ???????#" "#??## ########/#!!# | | ??????? ?# ### ##! [! | | ??????? """ ?# #### ##==*! | | ??????? """ # ##### #!== | | ????"G """ # ##### %= | | ???? "" " ###?###![ = | | ??????# """ # #######*][ | | ??????? """ # ############# | | ??????# """? # ### *#% | | ??????? ?? # ### "" + | | ?????????? #?### ### " # | | ???############# ### """ " # | | ???# @ # ### " """ + | | ???# """ # ### " "" # | | ???# """ # ### """ # | | ???# """ " " ho ### # | | ???# """ "T" # ### # | | ??#Y """ """ # ############ | | ??## # ############ | | ???###"""T"""### ############ | | ?????########## ### " # | | ??????????##### ### # | | ???????#???###? T ### " + | | ?????????#?#?## #?######T## | | ??????????#??#? ########### | | ????????#???#####/##########?## | | ?????????#????? ? ########## | | ????????????? """ ###?#?#?## | | ????????????? ?"" ?########?## | | ????????????"?"?" ? #?#####?##? | | ????????????T?? ##?#?##?### | | ???????????""??"? ? ?# ?###### | | ??????????????"?"? ?? ?####?# | | ????????????? ?"?? ? ??"?"###### | | ????????????? ????? ## ??##?# | | ????????????????????#??#?+?##??# | | ??????????????????? ?? ?#### | +----------------------------------------------------+ Best States ------------- Heat Dissipation 61 Energy Generation 31 Energy Capacity 520 Matter Stores 300 Matter Capacity 300 Sight Range 16 Terrain Scan Range 16 Terrain Scan Density 60 ECM Strength 2 Armor Coverage 450 Evasion (%) 50 Targeting Accuracy 8 Recoil Reduction 4 Item Schematics ----------------- Terrain Scan Processor | -8/Materials | Scanalyzed Hcp. Storage Unit | -8/Materials | Scanalyzed Imp. ECM Suite | -7/Factory | Scanalyzed Robot Schematics ------------------ None Fabricated ------------ Nothing Alien Tech Used ----------------- None Achievements -------------- Maybe Next Time I'll Detach My Launcher Challenges ------------ None Game ------ Seed ArcChipPlating Manual? 0 Play Time 01:44:03 Cumulative 106.8 hours Start 2021.12.21 @ 10:00:09 End 2021.12.21 @ 11:55:48 Sessions 1 Manual Loads 0 Difficulty Rogue Special Mode None Game No. 85 Rogue 85 Adventurer 0 Explorer 0 Win Type - Total 0 Types 0/0/0/0/0/0/0/0/0 Lore% 30 Gallery% 50 Achievement% 32 Wizard Run 0 Options --------- ASCII 0 Keyboard 0 Movement Arrows Keybinds 0 Fullscreen 1 Font 14/Terminus Map View 72x54 Tactical HUD 1 Map Filters NONE Filters NONE Steam 1 RUN: 764c1e63-eaab-4424-be2f-223c8180d51b